bitfinex-derivatives/quotes_SOLF0:USTF0_20250706
["timestamp","ask_amount","ask_price","bid_price","bid_amount"]
[1751832358642,17.10669628,151.62,151.58,6.5953]
[1751832358846,17.10669628,151.61,151.58,6.5953]
[1751832359148,12.65423551,151.6,151.58,6.5953]
[1751832359345,6.5945,151.61,151.58,6.5953]
[1751832359546,4.15948119,151.6,151.58,6.5953]
[1751832359847,6.5939,151.62,151.59,6.595]
[1751832360048,17.10311739,151.61,151.59,6.595]
[1751832360247,4.15935323,151.6,151.59,6.595]
[1751832360648,12.66960753,151.6,151.59,6.595]
[1751832361043,6.5935,151.63,151.6,6.5944]
[1751832361348,17.11963678,151.62,151.6,6.5944]
[1751832361546,4.15885211,151.61,151.6,6.5944]
[1751832362450,6.5935,151.63,151.6,6.5944]
[1751832362650,17.11146692,151.62,151.6,6.5944]
[1751832362952,8.91032942,151.66,151.6,6.5944]
[1751832362953,4.15682836,151.61,151.6,6.5944]
[1751832363252,1.67289263,151.66,151.6,4.87123679]
[1751832363446,23.75755174,151.65,151.6,4.87123679]
[1751832363752,17.16495174,151.64,151.6,4.87123679]
[1751832363952,4.18901109,151.63,151.6,4.87123679]
[1751832364250,6.5926,151.65,151.62,6.5934]
[1751832364451,19.27763218,151.64,151.61,4.87123679]
[1751832364646,6.593,151.64,151.61,4.87123679]
[1751832364850,4.20744975,151.63,151.61,4.87123679]
[1751832365150,6.593,151.64,151.61,4.87123679]
[1751832365452,6.593,151.64,151.61,11.46513679]
[1751832366550,6.5934,151.63,151.61,4.87123679]
[1751832366752,1.67289263,151.66,151.61,4.87123679]
[1751832366951,17.22875652,151.65,151.61,4.87123679]
[1751832367144,12.76094056,151.64,151.61,4.87123679]
[1751832367345,6.5925,151.65,151.62,6.5935]
[1751832367546,12.7583019,151.64,151.62,6.5935]
[1751832367745,1.67289263,151.66,151.62,6.5935]
[1751832367949,17.25053964,151.65,151.62,6.5935]
[1751832368251,12.758309,151.64,151.62,6.5935]
[1751832368452,1.67289263,151.66,151.62,6.5935]
[1751832368654,12.75594162,151.65,151.62,6.5935]
[1751832368854,1.67289263,151.66,151.62,6.5935]
[1751832369152,12.76670389,151.65,151.63,6.5933]
[1751832369346,1.67289263,151.66,151.63,6.5933]
[1751832369548,12.76417199,151.65,151.63,6.5933]
[1751832369749,1.67289263,151.66,151.63,6.5933]
[1751832370048,12.77314593,151.65,151.63,6.5933]
[1751832370248,1.67289263,151.66,151.63,6.5933]
[1751832370451,12.77184896,151.65,151.63,6.5933]
[1751832370653,1.67289263,151.66,151.62,6.5937]
[1751832370852,12.77106302,151.65,151.56,44.92]
[1751832371050,10.80631511,151.64,151.6,6.5946]
[1751832371253,6.5933,151.64,151.6,6.5946]
[1751832372255,6.5933,151.64,151.61,6.5941]
[1751832374249,6.5926,151.65,151.61,6.5941]
[1751832374450,8.55794025,151.64,151.61,6.5941]
[1751832374659,6.5926,151.65,151.61,6.5941]
[1751832374857,8.55778171,151.64,151.61,6.5941]
[1751832375058,6.5926,151.65,151.61,6.5941]
[1751832375958,8.26509263,151.66,151.61,4.87123679]
[1751832376160,8.53922503,151.65,151.61,4.87123679]
[1751832376461,8.26509263,151.66,151.62,6.5934]
[1751832376763,8.53916566,151.65,151.62,6.5934]
[1751832376954,8.26509263,151.66,151.62,6.5934]
[1751832377254,8.53916834,151.65,151.62,6.5934]
[1751832377552,8.26509263,151.66,151.62,6.5934]
[1751832377750,8.53933096,151.65,151.62,6.5934]
[1751832377950,8.26509263,151.66,151.62,6.5934]
[1751832378159,8.53932561,151.65,151.62,6.5934]
[1751832378360,8.26509263,151.66,151.62,6.5934]
[1751832378562,8.53971768,151.65,151.62,6.5934]
[1751832378861,1.67289263,151.66,151.61,4.87123679]
[1751832379059,8.539715,151.65,151.61,4.87123679]
[1751832379259,1.67289263,151.66,151.61,4.87123679]
[1751832379461,8.5392701,151.65,151.61,4.87123679]
[1751832379666,6.54412942,151.66,151.59,4.87123679]
[1751832379864,17.03668136,151.65,151.58,4.87123679]
[1751832380063,8.54064137,151.64,151.58,4.87123679]
[1751832380362,6.5937,151.63,151.59,6.5948]
[1751832380759,8.89222942,151.66,151.59,6.5948]
[1751832380960,12.9655608,151.65,151.59,6.5948]
[1751832381163,8.56001852,151.64,151.59,6.5948]
[1751832381358,8.89222942,151.66,151.59,6.5948]
[1751832381560,4.87123679,151.62,151.57,44.9]
[1751832381760,8.49797976,151.61,151.55,4.87123679]
[1751832382067,15.15695856,151.6,151.57,6.5958]
[1751832382260,6.5949,151.6,151.57,6.5958]
[1751832382467,6.5949,151.6,151.55,4.87123679]
[1751832382665,6.5951,151.59,151.56,6.5962]
[1751832383058,4.87123679,151.62,151.55,4.87123679]
[1751832383262,12.65607071,151.61,151.55,4.87123679]
[1751832383466,6.5949,151.6,151.57,6.5959]
[1751832385564,11.41840792,151.65,151.55,4.87123679]
[1751832385769,21.82665797,151.64,151.57,4.87123679]
[1751832385972,16.95542118,151.63,151.57,4.87123679]
[1751832386269,8.89222942,151.66,151.61,6.5942]
[1751832386468,16.95393825,151.65,151.61,6.5942]
[1751832386669,12.55876968,151.64,151.61,6.5942]
[1751832386873,8.89222942,151.66,151.61,6.5942]
[1751832387069,6.5932,151.64,151.61,6.5942]
[1751832387270,4.02099263,151.66,151.61,6.5942]
[1751832387463,16.91573633,151.65,151.61,6.5942]
[1751832387667,8.51927419,151.64,151.61,6.5942]
[1751832387870,6.5927,151.65,151.61,6.5942]
[1751832388071,8.5197927,151.64,151.61,6.5942]
[1751832388272,4.02099263,151.66,151.61,6.5942]
[1751832388472,16.91791312,151.65,151.61,6.5942]
[1751832388674,8.52058931,151.64,151.61,6.5942]
[1751832388874,4.02099263,151.66,151.61,6.5942]
[1751832389074,16.91791312,151.65,151.61,11.46543679]
[1751832389276,8.52058931,151.64,151.61,11.46543679]
[1751832389476,6.5931,151.64,151.61,11.46543679]
[1751832392272,8.56050936,151.63,151.61,11.46543679]
[1751832392476,6.5931,151.64,151.61,11.46543679]
[1751832392676,8.56051204,151.63,151.61,11.46543679]
[1751832392876,6.5931,151.64,151.61,11.46543679]
[1751832393078,8.56050668,151.63,151.61,11.46543679]
[1751832393376,6.5931,151.64,151.61,11.46543679]
[1751832393578,8.56146698,151.63,151.61,11.46543679]
[1751832393776,6.5931,151.64,151.61,11.46543679]
[1751832393982,8.56147234,151.63,151.61,11.46543679]
[1751832394280,6.5931,151.64,151.61,11.46543679]
[1751832394476,8.56172212,151.63,151.61,11.46543679]
[1751832394779,6.5933,151.63,151.61,4.87123679]
[1751832395675,6.5933,151.63,151.6,6.5945]
[1751832395880,6.5933,151.63,151.6,11.46573679]
[1751832401282,8.55622419,151.62,151.6,11.46573679]
[1751832401484,6.5933,151.63,151.6,11.46573679]
[1751832401683,8.55795657,151.62,151.6,6.5945]
[1751832401884,6.5933,151.63,151.6,6.5945]
[1751832402179,8.5581126,151.62,151.58,45.0]
[1751832402487,17.06970402,151.61,151.58,45.0]
[1751832402782,8.5581126,151.6,151.58,51.5955]
[1751832402975,6.5944,151.61,151.58,51.5955]
[1751832403177,8.55998895,151.6,151.58,51.5955]
[1751832403378,6.5944,151.61,151.58,51.5955]
[1751832406482,14.09174471,151.64,151.58,45.0]
[1751832406483,4.87123679,151.62,151.58,45.0]
[1751832406683,17.06288508,151.61,151.55,4.87123679]
[1751832406985,17.06288508,151.6,151.55,4.87123679]
[1751832407181,17.06288508,151.59,151.55,4.87123679]
[1751832407386,8.54229986,151.58,151.56,6.5961]
[1751832407586,6.5951,151.59,151.56,6.5961]
[1751832407787,8.54131878,151.58,151.56,6.5961]
[1751832407979,6.5951,151.59,151.56,6.5961]
[1751832408180,8.54131878,151.58,151.56,6.5961]
[1751832408377,6.5948,151.6,151.57,6.5959]
[1751832408582,17.04482856,151.59,151.57,6.5959]
[1751832408782,6.5948,151.6,151.57,6.5959]
[1751832409080,17.04482857,151.59,151.57,6.5959]
[1751832409281,14.09174471,151.62,151.56,6.5962]
[1751832409485,17.04151293,151.61,151.56,6.5962]
[1751832409683,17.04151293,151.6,151.56,6.5962]
[1751832409877,12.6324608,151.59,151.56,6.5962]
[1751832410080,6.595,151.6,151.56,6.5962]
[1751832410279,12.61445179,151.59,151.56,6.5962]
[1751832410579,6.5951,151.59,151.56,6.5962]
[1751832411184,6.5948,151.6,151.57,6.5959]
[1751832412180,6.5948,151.6,151.56,6.5962]
[1751832412382,6.5951,151.59,151.56,6.5962]
[1751832412786,4.87123679,151.62,151.57,6.5959]
[1751832412987,6.5949,151.6,151.57,6.5959]
[1751832413489,6.5952,151.59,151.56,6.5963]
[1751832416293,6.5952,151.59,151.57,6.5959]
[1751832417593,4.87123679,151.62,151.57,6.5959]
[1751832417594,6.5949,151.6,151.57,6.5959]
[1751832417785,12.30432055,151.65,151.57,6.5959]
[1751832417786,14.09174471,151.65,151.57,4.87123679]
[1751832418090,16.81338363,151.64,151.57,4.87123679]
[1751832418284,16.81338363,151.63,151.57,4.87123679]
[1751832418487,19.15745614,151.62,151.59,6.5948]
[1751832418689,6.5941,151.62,151.59,6.5948]
[1751832419589,6.5943,151.61,151.59,6.5948]
[1751832419991,6.594,151.62,151.59,6.5948]
[1751832421895,6.5943,151.61,151.58,6.5954]
[1751832423198,6.5943,151.61,151.59,6.5951]
[1751832423697,6.5939,151.62,151.59,6.5951]
[1751832423898,8.50715675,151.61,151.59,6.5951]
[1751832424098,6.5939,151.62,151.59,6.5951]
[1751832424294,15.10145675,151.61,151.58,6.5954]
[1751832424496,6.5943,151.61,151.58,6.5954]
[1751832425596,4.87123679,151.63,151.57,6.5958]
[1751832425802,16.87080254,151.62,151.57,6.5958]
[1751832426102,12.61901634,151.61,151.57,6.5958]
[1751832426303,4.87123679,151.63,151.57,6.5958]
[1751832426501,16.88048993,151.62,151.57,6.5958]
[1751832426697,12.62853331,151.61,151.58,6.5955]
[1751832426898,4.87123679,151.63,151.58,6.5955]
[1751832427101,12.62824816,151.62,151.58,6.5955]
[1751832427302,8.5568357,151.61,151.57,6.5957]
[1751832427502,4.87123679,151.63,151.57,6.5957]
[1751832427802,12.62911196,151.62,151.57,6.5957]
[1751832428000,15.15191851,151.61,151.58,6.5954]
[1751832428199,6.5945,151.61,151.58,6.5954]
[1751832428603,6.5947,151.6,151.58,6.5954]
[1751832430307,6.5947,151.6,151.57,6.5958]
[1751832432710,4.87123679,151.63,151.54,45.0]
[1751832432904,4.87123679,151.61,151.54,49.87123679]
[1751832433104,16.91128077,151.6,151.54,49.87123679]
[1751832433310,6.5956,151.58,151.55,6.5966]
[1751832434509,6.5956,151.58,151.55,6.5967]
[1751832434909,6.5956,151.58,151.55,9.71519865]
[1751832436110,6.5956,151.58,151.56,3.11849865]
[1751832436609,6.5961,151.57,151.55,3.11849865]
[1751832436806,6.5961,151.57,151.54,56.4699771]
[1751832437708,4.8728771,151.59,151.54,45.0]
[1751832437912,12.61458597,151.58,151.54,45.0]
[1751832438103,13.4148026,151.57,151.5,576.3988]
[1751832438311,4.8728771,151.55,151.5,6.5988]
[1751832439204,6.5979,151.53,151.5,6.5988]
[1751832441308,6.5979,151.53,151.49,6.5993]
[1751832441611,4.8728771,151.6,151.52,4.8728771]
[1751832441612,9.22050792,151.6,151.52,4.8728771]
[1751832441815,21.67867399,151.59,151.48,45.14]
[1751832442114,6.5965,151.56,151.52,4.8728771]
[1751832442409,6.5965,151.56,151.53,6.5974]
[1751832442609,6.5962,151.57,151.52,4.8728771]
[1751832443513,6.5962,151.57,151.53,6.5975]
[1751832444611,6.5965,151.56,151.53,6.5975]
[1751832447917,6.5962,151.57,151.53,6.5975]
[1751832448111,4.35784954,151.56,151.54,4.8728771]
[1751832448312,2.3268,151.61,151.54,4.8728771]
[1751832448514,17.56207446,151.6,151.54,4.8728771]
[1751832448813,9.06659772,151.59,151.54,4.8728771]
[1751832449013,4.35695622,151.58,151.55,4.8728771]
[1751832449216,6.5954,151.59,151.55,4.8728771]
[1751832449418,4.35705034,151.58,151.55,4.8728771]
[1751832449721,2.3268,151.61,151.55,11.4694771]
[1751832450016,17.58095692,151.6,151.55,11.4694771]
[1751832450211,9.06682399,151.59,151.57,6.5959]
[1751832450418,49.6905,151.62,151.57,11.4687771]
[1751832450715,17.59236228,151.61,151.57,11.4687771]
[1751832450915,17.59236228,151.6,151.57,11.4687771]
[1751832451115,4.36806763,151.59,151.57,11.4687771]
[1751832451316,49.6905,151.62,151.57,11.4687771]
[1751832451317,6.5948,151.6,151.57,11.4687771]
[1751832451523,4.36829741,151.59,151.57,11.4687771]
[1751832451716,6.5948,151.6,151.57,11.4687771]
[1751832452023,4.36829741,151.59,151.57,11.4687771]
[1751832452215,6.5948,151.6,151.57,11.4687771]
[1751832452416,4.36847039,151.59,151.57,11.4687771]
[1751832452614,6.5948,151.6,151.57,11.4687771]
[1751832452809,4.36827683,151.59,151.57,11.4687771]
[1751832453014,6.5948,151.6,151.57,11.4687771]
[1751832453220,4.36803363,151.59,151.57,11.4687771]
[1751832453518,6.5948,151.6,151.57,11.4687771]
[1751832453719,4.36784026,151.59,151.57,11.4687771]
[1751832453918,6.5948,151.6,151.57,11.4687771]
[1751832454123,4.36798079,151.59,151.57,11.4687771]
[1751832454318,6.5948,151.6,151.57,11.4687771]
[1751832454517,4.36778777,151.59,151.57,11.4687771]
[1751832454717,6.5948,151.6,151.57,11.4687771]
[1751832454918,4.36778777,151.59,151.57,11.4687771]
[1751832455225,47.3704,151.62,151.58,6.5955]
[1751832455518,17.66761202,151.61,151.58,6.5955]
[1751832455719,9.12840564,151.6,151.58,6.5955]
[1751832456022,4.36780409,151.59,151.58,6.5955]
[1751832456924,4.36780409,151.59,151.57,11.4686771]
[1751832457121,6.5946,151.61,151.57,11.4686771]
[1751832457321,4.76047396,151.6,151.57,11.4686771]
[1751832457523,4.36768672,151.59,151.57,11.4686771]
[1751832457723,6.5946,151.61,151.57,11.4686771]
[1751832457919,9.12774549,151.6,151.58,6.5954]
[1751832458116,4.36748842,151.59,151.58,6.5954]
[1751832458322,4.36748842,151.59,151.58,11.4682771]
[1751832458522,2.1966,151.65,151.6,6.5944]
[1751832458719,24.25816347,151.64,151.6,6.5944]
[1751832458920,17.66496347,151.63,151.6,6.5944]
[1751832459221,4.36697647,151.62,151.61,6.5942]
[1751832459521,9.12488143,151.62,151.58,4.8728771]
[1751832459722,4.36592714,151.61,151.58,4.8728771]
[1751832460017,6.5941,151.62,151.59,6.5951]
[1751832460319,9.12590887,151.61,151.59,6.5951]
[1751832460522,6.5941,151.62,151.59,6.5951]
[1751832460726,9.12548907,151.61,151.59,6.5951]
[1751832460916,6.5941,151.62,151.59,6.5951]
[1751832461115,9.12524806,151.61,151.59,6.5951]
[1751832461315,6.5941,151.62,151.59,6.5951]
[1751832461511,9.12474621,151.61,151.59,6.5951]
[1751832461716,6.5941,151.62,151.59,6.5951]
[1751832462016,2.1966,151.65,151.6,4.8728771]
[1751832462216,17.75224554,151.64,151.6,4.8728771]
[1751832462417,4.39774401,151.63,151.61,6.594]
[1751832462618,48.91609263,151.66,151.6,4.8728771]
[1751832462820,17.74950438,151.65,151.62,4.8728771]
[1751832463016,4.39727304,151.64,151.62,4.8728771]
[1751832463218,53.28519263,151.66,151.62,4.8728771]
[1751832463418,17.4013367,151.65,151.62,4.8728771]
[1751832463614,4.20805983,151.64,151.62,11.4664771]
[1751832463817,6.5925,151.65,151.62,11.4664771]
[1751832464217,53.28509263,151.66,151.62,11.4664771]
[1751832464422,17.43558825,151.65,151.63,6.5933]
[1751832464721,53.28509263,151.66,151.63,6.5933]
[1751832464924,17.4234668,151.65,151.63,6.5933]
[1751832465124,46.69289263,151.66,151.63,6.5933]
[1751832465322,17.46562611,151.65,151.63,6.5933]
[1751832465623,46.69289263,151.66,151.63,6.5933]
[1751832465824,8.9104028,151.65,151.63,6.5933]
[1751832466025,46.69289263,151.66,151.62,6.5937]
[1751832466220,17.46327595,151.65,151.61,4.8728771]
[1751832466426,4.65987413,151.65,151.63,6.593]
[1751832466624,4.28867159,151.64,151.63,6.593]
[1751832467226,53.28509263,151.66,151.63,6.593]
[1751832467429,17.55196564,151.65,151.63,6.593]
[1751832467615,53.28509263,151.66,151.63,6.593]
[1751832467820,22.42354737,151.65,151.58,45.02]
[1751832468023,8.99907958,151.64,151.58,49.8928771]
[1751832468226,4.28805776,151.63,151.58,49.8928771]
[1751832468426,6.5933,151.64,151.6,6.5944]
[1751832468628,4.8728771,151.65,151.6,6.5944]
[1751832468826,9.01203391,151.64,151.6,6.5944]
[1751832469024,46.69289263,151.66,151.61,6.5942]
[1751832469225,17.56237835,151.65,151.61,6.5942]
[1751832469426,9.01106258,151.64,151.61,6.5942]
[1751832469629,6.5932,151.64,151.61,6.5942]
[1751832474425,46.69289263,151.66,151.62,4.8728771]
[1751832475631,6.5928,151.65,151.63,6.5934]
[1751832476323,8.26509263,151.66,151.63,6.5934]
[1751832476519,1.67289263,151.66,151.62,4.8728771]
[1751832477331,8.26509263,151.66,151.63,6.5934]
[1751832478132,1.67289263,151.66,151.59,6.6108]
[1751832478431,1.67289263,151.66,151.62,4.8728771]
[1751832478628,8.26509263,151.66,151.63,6.5931]
[1751832479833,6.54576973,151.66,151.59,11.4836771]
[1751832480337,6.5932,151.64,151.61,6.5939]
[1751832480631,4.8728771,151.64,151.58,45.02]
[1751832480831,4.8728771,151.64,151.6,6.5946]
[1751832480832,6.5936,151.63,151.6,6.5946]
[1751832481234,4.8728771,151.64,151.58,45.02]
[1751832481429,4.8728771,151.64,151.58,51.6153]
[1751832481834,4.5946,151.65,151.58,51.6153]
[1751832482032,6.5938,151.63,151.58,51.6153]
[1751832482438,6.5938,151.63,151.59,6.595]
[1751832483330,6.5939,151.62,151.59,6.595]
[1751832483831,6.5939,151.62,151.6,6.5947]
[1751832484035,6.5936,151.63,151.6,6.5947]
[1751832484238,1.67289263,151.66,151.63,6.5931]
[1751832484433,1.67289263,151.66,151.63,4.8728771]
[1751832485437,1.67289263,151.66,151.64,6.5927]
[1751832485738,1.67289263,151.66,151.62,4.8728771]
[1751832485932,1.67289263,151.66,151.6,4.8728771]
[1751832486135,8.49532521,151.65,151.6,4.8728771]
[1751832486438,6.5928,151.65,151.6,4.8728771]
[1751832486736,1.67289263,151.66,151.6,4.8728771]
[1751832486938,8.98572382,151.65,151.59,2.2032]
[1751832487128,4.26427912,151.64,151.61,4.8728771]
[1751832487331,1.67289263,151.66,151.61,4.8728771]
[1751832487531,6.5925,151.65,151.62,6.5936]
[1751832487734,1.67289263,151.66,151.63,4.8728771]
[1751832488140,4.26551186,151.65,151.64,6.5929]
[1751832488638,1.67289263,151.66,151.64,6.5929]
[1751832488834,1.67289263,151.66,151.65,6.5925]
[1751832489035,19.13532304,151.66,151.65,6.5925]
[1751832489940,10.6607287,151.66,151.65,6.5925]
[1751832490439,10.6607287,151.66,151.6,4.8728771]
[1751832490440,10.6607287,151.66,151.59,2.2032]
[1751832490641,1.67289263,151.66,151.61,4.8728771]
[1751832490837,4.26682292,151.65,151.61,4.8728771]
[1751832491032,1.67289263,151.66,151.61,4.8728771]
[1751832491342,4.26790683,151.65,151.61,4.8728771]
[1751832491538,1.67289263,151.66,151.61,4.8728771]
[1751832492843,8.26509263,151.66,151.63,6.5931]
[1751832493944,4.30253326,151.65,151.63,6.5931]
[1751832494237,8.26509263,151.66,151.63,6.5931]
[1751832494445,4.30308112,151.65,151.63,6.5931]
[1751832494637,1.67289263,151.66,151.61,4.8728771]
[1751832494832,4.30308208,151.65,151.61,4.8728771]
[1751832495038,1.67289263,151.66,151.61,4.8728771]
[1751832495239,4.3038062,151.65,151.63,6.5931]
[1751832495446,1.67289263,151.66,151.63,6.5931]
[1751832495639,4.30368919,151.65,151.59,4.8728771]
[1751832495944,4.8728771,151.65,151.58,45.02]
[1751832496139,8.51313544,151.64,151.58,45.02]
[1751832496437,17.68388303,151.63,151.55,4.8728771]
[1751832496643,4.8728771,151.61,151.55,4.8728771]
[1751832497039,6.5951,151.6,151.57,6.5959]
[1751832497346,4.8728771,151.61,151.55,4.8728771]
[1751832497643,6.5951,151.59,151.56,6.5961]
[1751832499044,6.5956,151.58,151.55,6.5967]
[1751832500142,9.22394641,151.63,151.54,45.1]
[1751832500347,4.8728771,151.61,151.54,45.1]
[1751832500544,9.0240104,151.6,151.54,45.1]
[1751832500844,4.8728771,151.61,151.54,45.1]
[1751832501052,17.54165437,151.6,151.54,45.1]
[1751832501242,4.8728771,151.61,151.55,4.8728771]
[1751832501543,24.08268245,151.6,151.57,6.5957]
[1751832501845,4.8728771,151.61,151.54,49.9728771]
[1751832502046,17.48772381,151.6,151.54,4.8728771]
[1751832502246,4.8728771,151.61,151.54,4.8728771]
[1751832502247,12.77869972,151.59,151.54,4.8728771]
[1751832502552,6.5962,151.57,151.54,6.5971]
[1751832505545,4.8728771,151.61,151.52,4.8728771]
[1751832505750,17.25759303,151.6,151.56,4.8728771]
[1751832506050,6.595,151.6,151.57,6.5957]
[1751832507655,6.903,151.64,151.56,4.8728771]
[1751832507856,17.25202424,151.63,151.58,4.8728771]
[1751832508054,17.25202424,151.62,151.58,4.8728771]
[1751832508250,4.2114833,151.61,151.58,4.8728771]
[1751832508456,6.903,151.64,151.58,4.8728771]
[1751832508658,17.2503738,151.63,151.58,4.8728771]
[1751832508952,8.81624801,151.62,151.58,4.8728771]
[1751832509255,4.21094385,151.61,151.59,6.5949]
[1751832509457,6.5941,151.62,151.59,6.5949]
[1751832509656,4.21070357,151.61,151.59,6.5949]
[1751832509857,6.5941,151.62,151.59,6.5949]
[1751832510053,4.21070363,151.61,151.59,6.5949]
[1751832510355,6.5935,151.63,151.6,11.4675771]
[1751832510557,8.84788899,151.62,151.6,11.4675771]
[1751832510758,4.2432425,151.61,151.6,11.4675771]
[1751832510957,6.5935,151.63,151.6,11.4675771]
[1751832511159,8.84742266,151.62,151.6,11.4675771]
[1751832511359,6.5935,151.63,151.6,11.4675771]
[1751832511555,8.84718672,151.62,151.6,11.4675771]
[1751832511755,6.5935,151.63,151.6,11.4675771]
[1751832511955,8.84718682,151.62,151.6,4.8728771]
[1751832512153,6.5935,151.63,151.6,4.8728771]
[1751832512352,8.88495835,151.62,151.6,4.8728771]
[1751832512560,4.24278849,151.61,151.6,4.8728771]
[1751832512959,4.24278849,151.61,151.6,11.4675771]
[1751832513159,45.1,151.65,151.6,4.8728771]
[1751832513362,23.90953308,151.64,151.6,4.8728771]
[1751832513560,12.67465621,151.63,151.6,4.8728771]
[1751832513758,6.5932,151.64,151.6,4.8728771]
[1751832513960,17.3175278,151.63,151.6,4.8728771]
[1751832514161,6.5932,151.64,151.6,4.8728771]
[1751832514361,8.88397957,151.63,151.6,4.8728771]
[1751832514562,6.5932,151.64,151.61,6.5942]
[1751832514762,8.88439373,151.63,151.61,6.5942]
[1751832514963,6.5932,151.64,151.61,6.5942]
[1751832515155,8.92776065,151.63,151.61,6.5942]
[1751832515356,6.5932,151.64,151.61,6.5942]
[1751832515561,8.92798044,151.63,151.61,6.5942]
[1751832515761,6.5932,151.64,151.61,6.5942]
[1751832515961,4.28586667,151.63,151.6,4.8728771]
[1751832516260,45.1,151.65,151.6,4.8728771]
[1751832516461,17.41766244,151.64,151.6,4.8728771]
[1751832516760,4.28574511,151.63,151.6,4.8728771]
[1751832516959,45.1,151.65,151.58,4.8728771]
[1751832517164,17.41763635,151.64,151.58,4.8728771]
[1751832517466,15.52159605,151.63,151.59,6.5947]
[1751832517667,6.5936,151.63,151.59,6.5947]
[1751832518365,10.87962572,151.62,151.59,6.5947]
[1751832518561,6.5938,151.62,151.59,6.5947]
[1751832520167,4.8728771,151.64,151.58,11.4683771]
[1751832520365,8.9661524,151.63,151.58,4.8728771]
[1751832520570,4.28592069,151.62,151.6,6.5943]
[1751832520765,6.5934,151.63,151.6,6.5943]
[1751832520963,4.28609606,151.62,151.6,6.5943]
[1751832521169,6.5934,151.63,151.6,6.5943]
[1751832521465,4.28609606,151.62,151.61,6.594]
[1751832523169,4.27544822,151.62,151.61,6.594]
[1751832524970,4.27544822,151.62,151.6,6.5945]
[1751832525171,6.5934,151.63,151.6,6.5945]
[1751832525372,8.95740493,151.62,151.6,6.5945]
[1751832525674,6.5934,151.63,151.6,6.5945]
[1751832525973,8.95781575,151.62,151.6,6.5945]
[1751832526172,6.5934,151.63,151.6,6.5945]
[1751832526473,8.93241723,151.62,151.6,6.5945]
[1751832526673,6.5934,151.63,151.6,6.5945]
[1751832526968,8.9652174,151.62,151.6,6.5945]
[1751832527269,6.5934,151.63,151.6,6.5945]
[1751832527470,8.96268271,151.62,151.6,6.5945]
[1751832527676,6.5934,151.63,151.6,6.5945]
[1751832527865,8.96268271,151.62,151.6,6.5945]
[1751832528063,6.5934,151.63,151.6,6.5945]
[1751832528266,8.96268271,151.62,151.6,6.5945]
[1751832528463,6.5934,151.63,151.6,6.5945]
[1751832528772,8.9626444,151.62,151.6,6.5945]
[1751832528973,6.5934,151.63,151.6,6.5945]
[1751832529174,8.9626444,151.62,151.6,6.5945]
[1751832529372,6.5934,151.63,151.6,6.5945]
[1751832529674,15.55679609,151.62,151.6,6.5945]
[1751832529869,15.55679609,151.62,151.56,45.38]
[1751832529870,12.77626527,151.61,151.56,45.38]
[1751832530070,4.8728771,151.62,151.56,45.38]
[1751832530268,6.5949,151.6,151.56,45.38]
[1751832530472,6.5949,151.6,151.57,6.5956]
[1751832530671,6.5943,151.61,151.56,45.38]
[1751832530871,4.8728771,151.62,151.56,45.38]
[1751832531072,12.78673599,151.61,151.56,45.38]
[1751832531274,6.5947,151.6,151.57,6.5958]
[1751832532275,6.5947,151.6,151.58,6.5955]
[1751832532477,6.5947,151.6,151.56,45.38]
[1751832532775,6.5944,151.61,151.56,50.2528771]
[1751832532974,6.9284,151.63,151.56,50.2528771]
[1751832533176,24.03609923,151.62,151.56,50.2528771]
[1751832533373,4.31014697,151.61,151.56,50.2528771]
[1751832533574,6.5941,151.62,151.56,50.2528771]
[1751832533775,8.96467265,151.61,151.56,50.2528771]
[1751832533968,8.96467265,151.6,151.56,50.2528771]
[1751832534174,6.5941,151.62,151.59,6.5949]
[1751832534476,8.94302741,151.61,151.59,6.5949]
[1751832534679,4.28834478,151.6,151.59,6.5949]
[1751832535476,6.5936,151.63,151.6,6.5945]
[1751832535674,8.94392749,151.62,151.6,6.5945]
[1751832535873,8.94392749,151.61,151.6,6.5945]
[1751832536778,4.28876072,151.61,151.6,6.5945]
[1751832536979,6.5938,151.62,151.6,6.5945]
[1751832537178,4.29982972,151.61,151.6,6.5945]
[1751832537478,6.5936,151.63,151.6,6.5945]
[1751832537782,8.94365383,151.62,151.6,6.5945]
[1751832538076,6.5936,151.63,151.6,6.5945]
[1751832538276,8.92184122,151.62,151.6,6.5945]
[1751832538477,6.5936,151.63,151.6,6.5945]